fUSD/lending_fUSD_20250512
["ID","MTS","AMOUNT","RATE_DAILY","PERIOD"]
[360781182,1747013677649,237.83874857,0.00014195,2]
[360781183,1747013704935,9705.59,0.00014,2]
[360781184,1747013713607,-154.91353187,0.00015,4]
[360781185,1747013725297,471.56760415,0.00025,60]
[360781186,1747013731759,-152.09771575,0.00014222,2]
[360781187,1747013731783,-152.09771575,0.00014247,2]
[360781188,1747013731806,-152.09771575,0.00014271,2]
[360781189,1747013731828,-1200.0,0.00014293,2]
[360781190,1747013731849,-250.79332088,0.00014293,2]
[360781191,1747013752321,-49.20667912,0.00014293,2]
[360781192,1747013752344,-105.70332088,0.00014294,2]
[360781193,1747013766413,129611.64,0.00013399,2]
[360781194,1747013808502,537.6,0.00013388,2]
[360781195,1747013836425,-150.0,0.00014293,2]
[360781196,1747013836453,-300.0,0.00014293,2]
[360781197,1747013836483,-6.3,0.00014294,2]
[360781198,1747013901252,277.5769,0.00014195,2]
[360781199,1747013910899,2026.801,0.00014009,2]
[360781200,1747013924688,154.62618326,0.00014194,2]
[360781202,1747013982495,1111.0,0.000142,6]
[360781203,1747014017051,822.03,0.00011458,2]
[360781204,1747014017143,822.03,0.00013722,2]
[360781205,1747014048135,179.17,0.00013929,2]
[360781206,1747014066962,513.31,0.00013699,2]
[360781207,1747014075807,196.5,0.00014201,2]
[360781208,1747014150392,250.0,0.00013371,2]
[360781209,1747014166706,-154.62618325,0.00014219,2]
[360781210,1747014180625,1178692.73388089,0.00012,2]
[360781211,1747014180653,4582.8755138,0.00012,2]
[360781212,1747014180682,950042.30670571,0.00012,2]
[360781213,1747014194152,112023.76396827,0.00012,2]
[360781214,1747014209548,800.0,0.000142,2]
[360781215,1747014212290,98301.30767072,0.00013,2]
[360781216,1747014221947,838832.6216553,0.00014,2]
[360781217,1747014221975,2000000.0,0.00014,2]
[360781218,1747014222005,2000000.0,0.00014,2]
[360781219,1747014275134,-200.0,0.00013999,2]
[360781220,1747014286568,-30.11064921,0.00013999,2]
[360781221,1747014286591,-131.59852131,0.00014,2]
[360781222,1747014303353,-343.72042292,0.00013999,2]
[360781223,1747014304047,-343.72042292,0.00013999,2]
[360781224,1747014316596,-152.0,0.00013999,2]
[360781225,1747014332025,-264.71967137,0.00013999,2]
[360781226,1747014370052,-95.83948279,0.00013999,2]
[360781227,1747014370075,-124.37790607,0.00013999,2]
[360781228,1747014385816,-25.62209393,0.00013999,2]
[360781229,1747014385839,-300.0,0.00013999,2]
[360781230,1747014385867,-41.4142347,0.00013999,2]
[360781231,1747014400081,-158.5857653,0.00013999,2]
[360781232,1747014400109,-28.39749069,0.00013999,2]
[360781233,1747014403546,161.31,0.00013352,2]
[360781234,1747014403834,3829.33286309,0.00013352,2]
[360781235,1747014403856,3990.64286309,0.00013352,2]
[360781236,1747014403878,354.88427382,0.00013352,2]
[360781237,1747014415140,-133.31167983,0.00013999,2]
[360781238,1747014415167,-66.25494938,0.00013999,2]
[360781239,1747014430066,-159.00887079,0.00013999,2]
[360781240,1747014446128,-140.99112921,0.00013999,2]
[360781241,1747014446160,-195.37187079,0.00013999,2]
[360781242,1747014461523,-82.09360275,0.00013999,2]
[360781243,1747014461550,-152.0,0.00013999,2]
[360781244,1747014461577,-40.73144541,0.00013999,2]
[360781245,1747014475101,-222.61820783,0.00013999,2]
[360781246,1747014489997,-150.0,0.00013999,2]
[360781247,1747014490026,-8.36,0.00013999,2]
[360781248,1747014504970,-60.04634676,0.00013999,2]
[360781249,1747014504998,-139.95365324,0.00013999,2]
[360781250,1747014510826,200.0,0.00013699,2]
[360781254,1747014520098,-47.02960275,0.00013999,2]
[360781255,1747014520408,-129.60039725,0.00013999,2]
[360781256,1747014523569,173.3,0.00013744,2]
[360781257,1747014533236,1000.0,0.00013343,2]
[360781258,1747014535524,-215.03402899,0.00013999,2]
[360781259,1747014535548,-95.42597101,0.00014,2]
[360781263,1747014550581,-169.31343352,0.000139,2]
[360781264,1747014550605,-10.07344519,0.00013944,2]
[360781272,1747014565028,-159.23998833,0.00013944,2]
[360781273,1747014565050,-140.76001167,0.00013999,2]
[360781274,1747014568244,2262.45858927,0.00013333,2]
[360781275,1747014568267,1737.54141073,0.00013333,2]
[360781276,1747014579037,514.18,0.00013337,2]
[360781277,1747014580531,-159.23998833,0.00013999,2]
[360781278,1747014580553,-133.55436369,0.00013999,2]
[360781281,1747014595026,-45.83251502,0.00013999,2]
[360781282,1747014595048,-162.60362277,0.00013999,2]
[360781283,1747014598698,292.24,0.00013337,2]
[360781284,1747014611073,-158.89295091,0.00013999,2]
[360781285,1747014625034,-319.95246688,0.00013999,2]
[360781295,1747014632341,-721.15458221,0.00013999,2]
[360781296,1747014632351,-292.74549777,0.00013999,2]
[360781297,1747014632604,-7.25450223,0.00013999,2]
[360781298,1747014632613,-137.39637723,0.00013999,2]
[360781299,1747014632623,-250.0,0.00014,2]
[360781300,1747014632632,-11544.73402899,0.00014,2]
[360781301,1747014632642,-7254.37075531,0.00014,2]
[360781302,1747014632654,-2495.80673804,0.00014,2]
[360781303,1747014632688,-1992.36993761,0.00014,2]
[360781304,1747014632822,-603.66277639,0.00014,2]
[360781305,1747014632835,-165138.79721423,0.00014,2]
[360781306,1747014632844,-154.62618325,0.00014044,2]
[360781307,1747014632854,-154.62618325,0.00014168,2]
[360781308,1747014632864,-875.8945,0.00014194,2]
[360781309,1747014632874,-948.682738,0.00014194,2]
[360781310,1747014632883,-948.68273798,0.00014244,2]
[360781311,1747014632893,-510.02332026,0.00014273,2]
[360781312,1747014632903,-500.0,0.00014273,2]
[360781313,1747014633201,-502.07680751,0.00014273,2]
[360781314,1747014633210,-500.0,0.00014273,2]
[360781315,1747014633220,-504.79177095,0.00014273,2]
[360781316,1747014633229,-500.55635361,0.00014273,2]
[360781317,1747014633238,-500.0,0.00014273,2]
[360781318,1747014633248,-502.21678082,0.00014273,2]
[360781319,1747014633258,-12500.0,0.00014282,2]
[360781320,1747014633268,-151.0,0.00014285,2]
[360781321,1747014633278,-668.65185757,0.00014285,2]
[360781322,1747014633287,-207.4,0.00014285,2]
[360781323,1747014633299,-470.28283546,0.00014291,2]
[360781324,1747014633309,-401.85870833,0.00014291,2]
[360781325,1747014633319,-533.15555795,0.00014291,2]
[360781326,1747014633329,-503.29482959,0.00014291,2]
[360781327,1747014633339,-400.0,0.00014291,2]
[360781329,1747014633350,-400.94747637,0.00014291,2]
[360781331,1747014633359,-703.02,0.00014291,2]
[360781333,1747014633368,-400.0,0.00014291,2]
[360781334,1747014633378,-400.0,0.00014291,2]
[360781336,1747014633388,-678.21,0.00014291,2]
[360781339,1747014633398,-541.24,0.00014291,2]
[360781341,1747014633407,-12500.0,0.00014291,2]
[360781342,1747014633417,-400.0,0.00014292,2]
[360781344,1747014633427,-201.97297694,0.00014292,2]
[360781346,1747014633436,-401.80364027,0.00014292,2]
[360781348,1747014633446,-400.0,0.00014292,2]
[360781350,1747014633455,-400.0,0.00014292,2]
[360781352,1747014633464,-400.0,0.00014292,2]
[360781354,1747014633474,-400.0,0.00014292,2]
[360781356,1747014633483,-400.0,0.00014292,2]
[360781358,1747014633492,-400.0,0.00014292,2]
[360781360,1747014633502,-401.04287993,0.00014292,2]
[360781362,1747014633511,-625.79,0.00014292,2]
[360781364,1747014633520,-400.0,0.00014292,2]
[360781366,1747014633530,-400.0,0.00014292,2]
[360781368,1747014633540,-400.0,0.00014292,2]
[360781370,1747014633549,-400.0,0.00014292,2]
[360781372,1747014633559,-400.0,0.00014292,2]
[360781374,1747014633569,-400.0,0.00014292,2]
[360781376,1747014633579,-404.72113854,0.00014292,2]
[360781378,1747014633588,-400.0,0.00014292,2]
[360781380,1747014633598,-415.55617598,0.00014292,2]
[360781382,1747014633608,-400.0,0.00014292,2]
[360781384,1747014633617,-386.75569216,0.00014292,2]
[360781386,1747014633627,-504.26697652,0.00014292,2]
[360781388,1747014633637,-400.0,0.00014292,2]
[360781391,1747014633646,-402.0568673,0.00014292,2]
[360781393,1747014633656,-400.0,0.00014292,2]
[360781395,1747014633667,-401.59851123,0.00014292,2]
[360781397,1747014633676,-400.0,0.00014292,2]
[360781399,1747014633688,-400.0,0.00014292,2]
[360781401,1747014633697,-400.0,0.00014292,2]
[360781403,1747014633707,-400.0,0.00014292,2]
[360781404,1747014633716,-402.54657746,0.00014292,2]
[360781407,1747014633727,-400.0,0.00014292,2]
[360781409,1747014633737,-401.62834207,0.00014292,2]
[360781411,1747014633747,-400.0,0.00014292,2]
[360781413,1747014633757,-328.81551227,0.00014292,2]
[360781415,1747014633766,-400.0,0.00014292,2]
[360781417,1747014633775,-400.0,0.00014292,2]
[360781419,1747014633784,-400.9576139,0.00014292,2]
[360781421,1747014633794,-400.0,0.00014292,2]
[360781423,1747014633803,-400.0,0.00014292,2]
[360781425,1747014633812,-400.0,0.00014292,2]
[360781427,1747014633821,-400.0,0.00014292,2]
[360781429,1747014633830,-400.0,0.00014292,2]
[360781431,1747014633840,-400.0,0.00014292,2]
[360781433,1747014633850,-400.0,0.00014292,2]
[360781435,1747014633860,-400.0,0.00014292,2]
[360781437,1747014633869,-475.31,0.00014292,2]
[360781439,1747014633878,-400.0,0.00014292,2]
[360781441,1747014633889,-400.0,0.00014292,2]
[360781443,1747014633898,-401.97063918,0.00014292,2]
[360781445,1747014633908,-402.53875075,0.00014292,2]
[360781447,1747014633918,-401.62588453,0.00014292,2]
[360781449,1747014633927,-598.62,0.00014292,2]
[360781451,1747014633937,-400.0,0.00014292,2]
[360781453,1747014633946,-205.21930084,0.00014292,2]
[360781455,1747014633955,-400.0,0.00014292,2]
[360781457,1747014633966,-400.0,0.00014292,2]
[360781458,1747014633978,-400.0,0.00014292,2]
[360781460,1747014633988,-400.0,0.00014292,2]
[360781462,1747014633997,-154.62618325,0.00014292,2]
[360781464,1747014634008,-452.04,0.00014292,2]
[360781466,1747014634018,-400.0,0.00014292,2]
[360781468,1747014634027,-209.8571181,0.00014292,2]
[360781470,1747014634038,-452.80751411,0.00014292,2]
[360781472,1747014634047,-400.0,0.00014292,2]
[360781474,1747014634057,-400.0,0.00014292,2]
[360781476,1747014634067,-509.62419923,0.00014292,2]
[360781478,1747014634076,-400.0,0.00014292,2]
[360781480,1747014634086,-400.0,0.00014292,2]
[360781482,1747014634096,-400.0,0.00014292,2]
[360781484,1747014634105,-400.0,0.00014292,2]
[360781486,1747014634114,-400.0,0.00014292,2]
[360781488,1747014634125,-400.0,0.00014292,2]
[360781490,1747014634135,-400.0,0.00014292,2]
[360781492,1747014634144,-400.0,0.00014292,2]
[360781494,1747014634154,-425.5,0.00014292,2]
[360781496,1747014634164,-265.69835768,0.00014292,2]
[360781498,1747014634173,-401.28346785,0.00014292,2]
[360781500,1747014634183,-400.73126255,0.00014292,2]
[360781502,1747014634193,-400.0,0.00014292,2]
[360781504,1747014634202,-400.0,0.00014292,2]
[360781506,1747014634213,-401.08769539,0.00014292,2]
[360781508,1747014634223,-401.14573089,0.00014292,2]
[360781510,1747014634232,-400.0,0.00014292,2]
[360781512,1747014634241,-409.88381659,0.00014292,2]
[360781513,1747014634250,-402.67112725,0.00014292,2]
[360781515,1747014634259,-400.0,0.00014292,2]
[360781518,1747014634269,-319.33,0.00014292,2]
[360781519,1747014634279,-406.60193783,0.00014292,2]
[360781521,1747014634294,-400.0,0.00014292,2]
[360781523,1747014634306,-400.0,0.00014292,2]
[360781525,1747014634316,-400.0,0.00014292,2]
[360781527,1747014634325,-443.43,0.00014292,2]
[360781529,1747014634335,-404.93964493,0.00014292,2]
[360781531,1747014634345,-400.0,0.00014292,2]
[360781533,1747014634354,-400.53079862,0.00014292,2]
[360781535,1747014634364,-400.0,0.00014292,2]
[360781537,1747014634374,-400.0,0.00014292,2]
[360781539,1747014634385,-402.98417717,0.00014292,2]
[360781541,1747014634394,-402.8467249,0.00014292,2]
[360781543,1747014634404,-400.0,0.00014292,2]
[360781545,1747014634413,-400.0,0.00014292,2]
[360781547,1747014634422,-407.95489056,0.00014292,2]
[360781549,1747014634431,-400.0,0.00014292,2]
[360781551,1747014634440,-402.68603522,0.00014292,2]
[360781553,1747014634449,-402.40131598,0.00014292,2]
[360781555,1747014634460,-400.0,0.00014292,2]
[360781557,1747014634469,-487.26971834,0.00014292,2]
[360781559,1747014634479,-538.96004743,0.00014292,2]
[360781561,1747014634489,-400.0,0.00014292,2]
[360781563,1747014634498,-400.0,0.00014292,2]
[360781565,1747014634509,-226.68464611,0.00014292,2]
[360781567,1747014634530,-400.0,0.00014292,2]
[360781569,1747014634546,-400.0,0.00014292,2]
[360781571,1747014634555,-404.94195588,0.00014292,2]
[360781573,1747014634565,-400.96138103,0.00014292,2]
[360781575,1747014634574,-400.0,0.00014292,2]
[360781577,1747014634583,-400.0,0.00014292,2]
[360781579,1747014634593,-400.0,0.00014292,2]
[360781581,1747014634602,-400.0,0.00014292,2]
[360781583,1747014634611,-400.0,0.00014292,2]
[360781584,1747014634620,-400.0,0.00014292,2]
[360781585,1747014634630,-337.59923161,0.00014292,2]
[360781586,1747014634639,-402.44119775,0.00014292,2]
[360781587,1747014634649,-400.0,0.00014292,2]
[360781588,1747014634658,-400.0,0.00014292,2]
[360781589,1747014634667,-400.0,0.00014292,2]
[360781590,1747014634676,-504.76041348,0.00014292,2]
[360781591,1747014634686,-400.0,0.00014292,2]
[360781592,1747014634695,-400.0,0.00014292,2]
[360781593,1747014634706,-400.0,0.00014292,2]
[360781594,1747014634718,-400.0,0.00014292,2]
[360781595,1747014634727,-400.0,0.00014292,2]
[360781596,1747014634738,-400.0,0.00014292,2]
[360781597,1747014634748,-400.0,0.00014292,2]
[360781598,1747014634757,-400.0,0.00014292,2]
[360781600,1747014634768,-286.34865088,0.00014292,2]
[360781602,1747014634777,-400.0,0.00014292,2]
[360781604,1747014634787,-400.0,0.00014292,2]
[360781606,1747014634797,-400.0,0.00014292,2]
[360781608,1747014634806,-400.0,0.00014292,2]
[360781611,1747014634816,-400.0,0.00014292,2]
[360781613,1747014634825,-596.59,0.00014292,2]
[360781615,1747014634835,-400.0,0.00014292,2]
[360781617,1747014634844,-400.0,0.00014292,2]
[360781619,1747014634854,-400.0,0.00014292,2]
[360781620,1747014634863,-440.67,0.00014292,2]
[360781622,1747014634873,-689.64,0.00014292,2]
[360781624,1747014634882,-400.0,0.00014292,2]
[360781626,1747014634891,-1704.41,0.00014292,2]
[360781628,1747014634900,-1704.41,0.00014292,2]
[360781630,1747014634910,-400.0,0.00014292,2]
[360781633,1747014634920,-208.07126554,0.00014292,2]
[360781634,1747014634929,-400.0,0.00014292,2]
[360781636,1747014634939,-475.84,0.00014292,2]
[360781638,1747014634948,-475.84,0.00014292,2]
[360781640,1747014634958,-400.0,0.00014292,2]
[360781642,1747014634968,-400.0,0.00014292,2]
[360781644,1747014634977,-400.0,0.00014292,2]
[360781646,1747014634986,-400.0,0.00014292,2]
[360781648,1747014634997,-451.79,0.00014292,2]
[360781651,1747014635007,-400.0,0.00014292,2]
[360781653,1747014635017,-400.0,0.00014292,2]
[360781655,1747014635027,-5881.89240594,0.00014292,2]
[360781980,1747014638318,-400.0,0.00014291,2]
[360781982,1747014638327,-5159.25206961,0.00014292,2]
[360781984,1747014638339,-1716.59552445,0.00014292,2]
[360781986,1747014638349,-4976.87290781,0.00014292,2]
[360782005,1747014638581,-797.32,0.00014291,2]
[360782007,1747014638591,-2854.77999993,0.00014292,2]
[360782009,1747014638602,-731.44999975,0.00014292,2]
[360782018,1747014638718,188.0573,0.000133,2]
[360782027,1747014638812,-4194.63709251,0.00014292,2]
[360782028,1747014638821,-400.0,0.00014292,2]
[360782030,1747014638831,-400.0,0.00014292,2]
[360782032,1747014638840,-945.29,0.00014292,2]
[360782034,1747014638850,-945.29,0.00014292,2]
[360782036,1747014638859,-400.0,0.00014292,2]
[360782037,1747014638869,-374.66718912,0.00014292,2]
[360782039,1747014638878,-400.0,0.00014292,2]
[360782041,1747014638887,-400.0,0.00014292,2]
[360782043,1747014638897,-235.44731261,0.00014292,2]
[360782109,1747014640541,-320.39504816,0.00014108,2]
[360782113,1747014640566,-23665.59984274,0.00014108,2]
[360782115,1747014640575,-400.0,0.00014291,2]
[360782116,1747014640585,-1125.16,0.00014291,2]
[360782118,1747014640594,-164.55268739,0.00014292,2]
[360782120,1747014640605,-400.0,0.00014292,2]
[360782122,1747014640614,-400.0,0.00014292,2]
[360782124,1747014640623,-1357.08,0.00014292,2]
[360782126,1747014640632,-2371.43,0.00014292,2]
[360782128,1747014640642,-2371.43,0.00014292,2]
[360782130,1747014640651,-422.28,0.00014292,2]
[360782132,1747014640660,-400.0,0.00014292,2]
[360782134,1747014640669,-400.0,0.00014292,2]
[360782136,1747014640678,-400.0,0.00014292,2]
[360782138,1747014640687,-509.62278299,0.00014292,2]
[360782140,1747014640696,-400.0,0.00014292,2]
[360782142,1747014640706,-1230.91,0.00014292,2]
[360782144,1747014640721,-400.0,0.00014292,2]
[360782146,1747014640730,-1230.91,0.00014292,2]
[360782167,1747014640997,-400.0,0.00014292,2]
[360782170,1747014641013,-400.0,0.00014292,2]
[360782172,1747014641023,-400.0,0.00014292,2]
[360782173,1747014641033,-400.0,0.00014292,2]
[360782175,1747014641042,-400.0,0.00014292,2]
[360782177,1747014641052,-400.0,0.00014292,2]
[360782179,1747014641062,-400.0,0.00014292,2]
[360782181,1747014641071,-400.0,0.00014292,2]
[360782183,1747014641080,-400.0,0.00014292,2]
[360782185,1747014641090,-400.0,0.00014292,2]
[360782187,1747014641099,-623.74,0.00014292,2]
[360782189,1747014641108,-623.74,0.00014292,2]
[360782190,1747014641118,-400.0,0.00014292,2]
[360782192,1747014641127,-400.0,0.00014292,2]
[360782194,1747014641137,-160.108833,0.00014292,2]
[360782196,1747014641148,-400.0,0.00014292,2]
[360782198,1747014641157,-1168.89,0.00014292,2]
[360782200,1747014641166,-1168.89,0.00014292,2]
[360782202,1747014641175,-430.82,0.00014292,2]
[360782204,1747014641185,-430.82,0.00014292,2]
[360782206,1747014641194,-400.0,0.00014292,2]
[360782208,1747014641203,-1291.503066,0.00014292,2]
[360782210,1747014641215,-1291.503066,0.00014292,2]
[360782212,1747014641224,-400.0,0.00014292,2]
[360782214,1747014641233,-512.00269118,0.00014292,2]
[360782216,1747014641243,-400.0,0.00014292,2]
[360782218,1747014641252,-345.2460307,0.00014292,2]
[360782313,1747014643623,-54.7539693,0.00014292,2]
[360782314,1747014643633,-400.0,0.00014292,2]
[360782315,1747014643643,-672.0,0.00014292,2]
[360782316,1747014643654,-672.0,0.00014292,2]
[360782317,1747014643663,-703.02,0.00014292,2]
[360782318,1747014643672,-400.0,0.00014292,2]
[360782319,1747014643682,-400.0,0.00014292,2]
[360782320,1747014643691,-400.0,0.00014292,2]
[360782321,1747014643701,-400.0,0.00014292,2]
[360782322,1747014643710,-400.0,0.00014292,2]
[360782323,1747014643719,-400.0,0.00014292,2]
[360782324,1747014643728,-25159.137884,0.00014292,2]
[360782325,1747014643739,-9287.09061456,0.00014292,2]
[360782326,1747014643752,-267.08732365,0.00014292,2]
[360782327,1747014643788,-5563.69208269,0.00014292,2]
[360782346,1747014646673,-400.0,0.00014291,2]
[360782347,1747014646683,-851.89842807,0.00014292,2]
[360782348,1747014646733,-445.6074356,0.00014292,2]
[360782349,1747014658273,-290.06495184,0.000139,2]
[360782350,1747014662722,300.0,0.000132,4]
[360782351,1747014664827,700.0,0.000133,4]
[360782352,1747014665339,-166.05,0.000139,2]
[360782353,1747014666950,258.62415236,0.000134,4]
[360782354,1747014666972,841.37584764,0.000134,4]
[360782355,1747014669053,1400.0,0.000135,4]
[360782356,1747014671155,1749.26701545,0.000136,4]
[360782357,1747014671177,50.73298455,0.000136,4]
[360782358,1747014671326,-310.46,0.000139,2]
[360782359,1747014673382,300.0,0.000137,5]
[360782360,1747014675482,300.0,0.000138,5]
[360782361,1747014685039,-163.04799938,0.000139,2]
[360782362,1747014691127,264.06,0.00013336,2]
[360782363,1747014701103,-216.49811875,0.000139,2]
[360782364,1747014714977,-316.78,0.000139,2]
[360782365,1747014731104,-311.81979359,0.000139,2]
[360782366,1747014745545,-233.15049164,0.000139,2]
[360782367,1747014760505,-213.61637939,0.00013899,2]
[360782368,1747014775074,-286.38362061,0.00013899,2]
[360782369,1747014775371,-179.32101991,0.00013899,2]
[360782370,1747014785314,272.42,0.00013266,2]
[360782371,1747014791223,-152.87535948,0.00013898,2]
[360782372,1747014792555,2000.0,0.0001316,2]
[360782373,1747014805063,-147.12464052,0.00013898,2]
[360782374,1747014805085,-152.87535948,0.00013899,2]
[360782375,1747014812807,803.42987854,0.00013264,2]
[360782376,1747014812829,156.19012146,0.00013264,2]
[360782377,1747014820971,-119.7299625,0.00013899,2]
[360782378,1747014820999,-194.35719062,0.00013899,2]
[360782379,1747014828483,173.71823534,0.00013799,2]
[360782380,1747014834873,200.0,0.000132,4]
[360782381,1747014835050,-217.53735148,0.00013899,2]
[360782382,1747014836988,500.0,0.000133,4]
[360782383,1747014839122,800.0,0.000134,4]
[360782384,1747014841305,1100.0,0.000135,4]
[360782385,1747014843535,1060.73450629,0.000136,4]
[360782386,1747014843558,339.26549371,0.000136,4]
[360782387,1747014845602,200.0,0.000137,5]
[360782388,1747014851094,-171.55140241,0.000138,5]
[360782389,1747014865094,-28.44859759,0.000138,5]
[360782390,1747014865420,-150.0,0.00013898,2]
[360782391,1747014865443,-72.06931366,0.00013898,2]
[360782392,1747014880715,-227.93068634,0.00013898,2]
[360782393,1747014880744,-72.06931366,0.00013899,2]
[360782394,1747014895062,-500.0,0.00013898,2]
[360782395,1747014895091,-57.1162,0.00013898,2]
[360782396,1747014910224,-298.05223378,0.00013897,2]
[360782397,1747014926780,-258.80557484,0.00013897,2]
[360782398,1747014927322,-258.80557484,0.00013897,2]
[360782399,1747014941121,-250.0,0.00013897,2]
[360782400,1747014941614,-134.33661654,0.00013897,2]
[360782401,1747014941637,-115.66338346,0.00013897,2]
[360782402,1747014955031,-184.33661654,0.00013897,2]
[360782403,1747014955063,-50.6316234,0.00013898,2]
[360782404,1747014970080,-257.41866794,0.00013897,2]
[360782405,1747014975529,298.3,0.00013211,2]
[360782406,1747014985057,-42.58133206,0.00013897,2]
[360782407,1747014985089,-121.66800894,0.00013898,2]
[360782408,1747015000136,-270.58416766,0.00013898,2]
[360782409,1747015000167,-43.82705861,0.00013898,2]
[360782410,1747015015101,-261.23643298,0.00013898,2]
[360782411,1747015029328,319.53,0.0001322,2]
[360782412,1747015029511,319.53,0.00013223,2]
[360782413,1747015029850,319.53,0.00013227,2]
[360782414,1747015029949,319.53,0.0001323,2]
[360782415,1747015030161,319.53,0.00013233,2]
[360782416,1747015030395,319.53,0.00013237,2]
[360782417,1747015030527,-233.29908279,0.00013897,2]
[360782418,1747015030622,319.53,0.0001324,2]
[360782419,1747015030811,319.53,0.00013244,2]
[360782420,1747015031024,319.53,0.00013247,2]
[360782421,1747015031447,277.30736938,0.00013251,2]
[360782422,1747015031471,42.22263062,0.00013251,2]
[360782423,1747015031648,319.53,0.00013254,2]
[360782424,1747015031838,319.53,0.00013258,2]
[360782425,1747015032028,319.53,0.00013261,2]
[360782426,1747015034435,319.53,0.00013265,2]
[360782427,1747015034640,319.53,0.00013268,2]
[360782428,1747015034876,319.53,0.00013272,2]
[360782429,1747015035195,319.53,0.00013275,2]
[360782430,1747015035405,319.53,0.00013279,2]
[360782431,1747015035643,319.53,0.00013282,2]
[360782432,1747015035857,319.53,0.00013286,2]
[360782433,1747015045076,-66.70091721,0.00013897,2]
[360782434,1747015045099,-141.55241555,0.00013897,2]
[360782435,1747015056593,5281.0,0.00028,120]
[360782436,1747015060093,753.12023247,0.00013226,2]
[360782437,1747015060118,1099.29976753,0.00013226,2]
[360782438,1747015060273,-8.44758445,0.00013897,2]
[360782439,1747015060305,-194.93650841,0.00013898,2]
[360782440,1747015060336,-46.61590714,0.00013898,2]
[360782441,1747015075435,-172.46277441,0.00013898,2]
[360782443,1747015090000,-300.0,0.00013897,2]
[360782444,1747015090031,-83.28787719,0.00013898,2]
[360782445,1747015095651,2891.34309556,0.00013212,2]
[360782446,1747015095673,3990.64286309,0.00013212,2]
[360782447,1747015105578,-191.74666724,0.00013208,2]
[360782448,1747015120008,-300.0,0.00013208,2]
[360782449,1747015135819,-155.5788271,0.00013112,2]
[360782450,1747015150040,-18.13940824,0.00013112,2]
[360782451,1747015150063,-426.77436509,0.00013208,2]
[360782452,1747015151251,3300.416,0.00028,120]
[360782453,1747015165083,-152.0,0.00013192,2]
[360782454,1747015180628,-159.16296703,0.0001319,2]
[360782455,1747015181167,-159.16296703,0.0001319,2]
[360782456,1747015195676,-192.11888246,0.0001319,2]
[360782458,1747015205192,2212.320533,0.00028,120]
[360782459,1747015211321,-153.4,0.00013177,2]
[360782460,1747015225374,-14.10883804,0.00013177,2]
[360782461,1747015225396,-156.82663516,0.0001319,2]
[360782462,1747015241138,-250.0,0.00013156,2]
[360782463,1747015241166,-10.91856186,0.00013189,2]
[360782464,1747015241697,-260.91856186,0.00013189,2]
[360782465,1747015255257,-224.27106723,0.00013189,2]
[360782466,1747015256752,-3.89180905,0.00013189,2]
[360782467,1747015256779,-220.37925818,0.00013189,2]
[360782468,1747015270186,-200.0,0.00013141,2]
[360782469,1747015285579,-99.57,0.00013141,2]
[360782470,1747015285604,-164.68081543,0.00013188,2]
[360782471,1747015300038,-135.31918457,0.00013188,2]
[360782472,1747015300066,-133.86218497,0.00013189,2]
[360782473,1747015315003,-145.75855685,0.00013189,2]
[360782474,1747015315032,-120.80925818,0.00013189,2]
[360782475,1747015330216,-300.0,0.00013189,2]